Cogmind - Beta 15 *** ADVENTURER MODE // 2025.07.01 @ 23:16:23 Player: BigChungusGaming Result: Destroyed by 6U-HY8(R) with Subdweller Beam Cannon Performance ------------- Evolutions (0) 0 Regions Visited (2) 400 Robots Destroyed (8) 40 Value Destroyed (200) 200 Prototype IDs (11) 220 Alien Tech Used (0) 0 Bonus (-15) -15 TOTAL SCORE: 845 Bonus ------- Friendly Fire -15 Cogmind --------- Core Integrity 0/250 Matter 168/300 Energy 200/200 System Corruption 0% Temperature Cool (9) Movement Treading (160) Location -10/Subcaves Parts ------- > --- POWER (1) -------- Subdweller Power Source > --- PROPULSION (2) --- Light Treads > --- UTILITY (2) ------ Disposable Heat Sink Small Storage Unit > --- WEAPON (2) ------- Assault Rifle Barrage Gun > --- INVENTORY (8) ---- Ion Engine Light Ion Engine Subdweller Power Source Assault Rifle Assault Rifle Subdweller Machine Gun Peak State ------------ > --- POWER ------------ Subdweller Power Source > --- PROPULSION ------- Light Treads Light Treads > --- UTILITY ---------- Disposable Heat Sink Small Storage Unit > --- WEAPON ----------- Subdweller Machine Gun Barrage Gun > --- INVENTORY -------- Ion Engine Light Ion Engine Assault Rifle Assault Rifle Assault Rifle [Rating: 12] Favorites ----------- Power Subdweller Power Source Engine Subdweller Power Source Propulsion Light Treads Treads Light Treads Utility Small Storage Unit Device Disposable Heat Sink Storage Small Storage Unit Weapon Assault Rifle Ballistic Gun Assault Rifle Build | -11 -10 -10 ------- Run | Yrd Mat Sub Slots Evolved . | . . . Power . | . . . Propulsion . | . . . Utility . | . . . Weapon . | . . . Parts Attached 12 | 6 . 6 Power 3 | 1 . 2 Engine 3 | 1 . 2 Core . | . . . Reactor . | . . . Propulsion 2 | 2 . . Treads 2 | 2 . . Leg . | . . . Wheel . | . . . Hover . | . . . Flight . | . . . Utility 2 | 1 . 1 Device 1 | . . 1 Storage 1 | 1 . . Processor . | . . . Hackware . | . . . Protection . | . . . Artifact . | . . . Weapon 5 | 2 . 3 Energy Gun . | . . . Energy Cannon . | . . . Ballistic Gun 5 | 2 . 3 Ballistic Cannon . | . . . Launcher . | . . . Special Weapon . | . . . Impact Weapon . | . . . Slashing Weapon . | . . . Piercing Weapon . | . . . Special Melee Weapon . | . . . Unidentified Prototypes . | . . . Parts Lost 1 | . . 1 Power . | . . . Propulsion 1 | . . 1 Utility . | . . . Weapon . | . . . Highest Loss Streak 1 | . . 1 To Critical Strikes . | . . . Average Backups 3 | . 2 3 Power 1 | . 1 2 Propulsion . | . . . Utility . | . . . Weapon 1 | . 1 1 Tool/Special . | . . . Unused Backups 1 | . . 1 Power 1 | . . 1 Propulsion . | . . . Utility . | . . . Weapon . | . . . Tool/Special . | . . . Average Slot Usage (%) 87 | . 85 87 Engine 14 | . 14 14 Treads 28 | . 28 28 Device 2 | . . 2 Storage 14 | . 14 14 Ballistic Gun 28 | . 28 28 Peak Build Rating 12 | 6 6 12 Average Rating 7 | 4 6 8 On Entrance 4 | . 6 6 Naked Turns . | . . . Heaviest Build 18 | 12 12 18 Greatest Support 40 | 40 40 40 Greatest Overweight (x) . | . . . Average Overweight (x) . | . . . Largest Inventory Capacity 8 | 8 8 8 Average Capacity 7 | 7 8 8 Most Carried 6 | 2 2 6 Average Carried 3 | 1 2 3 Final Capacity 8 | 8 8 8 Final Carried 6 | 2 2 6 Class Distribution -------------------- 100% | Mutant Dominant Class ---------------- Mutant | -10/Materials Mutant | -10/Subcaves Resources | -11 -10 -10 ----------- Run | Yrd Mat Sub Matter Collected 360 | 219 36 105 Remotely . | . . . Salvage Created 224 | . . 224 Parts 16 | . . 16 Haulers Intercepted . | . . . Recyclers Shooed . | . . . Parts Field Recycled . | . . . Retrieved Matter . | . . . Parts Self-Destructed 15 | . . 15 Prevented . | . . . Kills | -11 -10 -10 ------- Run | Yrd Mat Sub Combat Hostiles Destroyed 8 | . . 8 Guns 8 | . . 8 Classes Destroyed 2 | . . 2 Swarmer 4 | . . 4 Subdweller 4 | . . 4 Best Kill Streak 4 | . . 4 Combat Bots Only 4 | . . 4 Max Kills in Single Turn 1 | . . 1 Gunslinging . | . . . Exploded . | . . . Melee . | . . . Uniques/NPCs Destroyed . | . . . Combat | -11 -10 -10 -------- Run | Yrd Mat Sub Hostile Shots Fired 126 | . . 126 Missed 44 | . . 44 Hits 82 | . . 82 Projectile 82 | . . 82 Critical Strikes 1 | . . 1 Damage Taken 878 | . . 878 Core 252 | . . 252 Absorbed by Shields . | . . . Ignored by Resistances 260 | . . 260 Core Remaining (%) 100 | 100 . . Volleys Fired 31 | . . 31 Largest 2 | . . 2 Hottest 58 | . . 58 Shots Fired 57 | . . 57 Gun 57 | . . 57 Cannon . | . . . Launcher . | . . . Special . | . . . Kinetic 57 | . . 57 Thermal . | . . . Explosive . | . . . Electromagnetic . | . . . Robot Hit Streak 40 | . . 40 Robot Miss Streak 1 | . . 1 Penetration Max . | . . . Secondary Targets 1 | . . 1 Max Gunslinging Chain 1 | . . 1 Shots Hit Robots 53 | . . 53 Core Hits 11 | . . 11 Critical Kills . | . . . Critical Parts Destroyed . | . . . Critical Strikes 1 | . . 1 Destroy 1 | . . 1 Melee Attacks . | . . . Impact . | . . . Slashing . | . . . Piercing . | . . . Sneak Attacks . | . . . Combat Hostiles . | . . . Follow-up Attacks . | . . . Damage Inflicted 766 | . . 766 Guns 766 | . . 766 Cannons . | . . . Explosions . | . . . Melee . | . . . Ramming . | . . . Kinetic 766 | . . 766 Thermal . | . . . Explosive . | . . . Electromagnetic . | . . . Impact . | . . . Slashing . | . . . Piercing . | . . . Highest Corruption . | . . . Average Corruption . | . . . Corruption Purged . | . . . Corruption Blocked . | . . . Overload Shots . | . . . Overflow Damage . | . . . Projectiles . | . . . Explosions . | . . . Melee . | . . . Knockbacks . | . . . Impact . | . . . Kinetic . | . . . Secondary . | . . . Self-Inflicted Damage . | . . . Shots . | . . . Rammed . | . . . Targets Rammed . | . . . Kicked . | . . . Crushed . | . . . Highest Temperature 25 | . . 25 Average Temperature 11 | . . 11 Received Heat Transfer 405 | . . 405 Siege Activations . | . . . Martial Activations . | . . . Shielding Activations . | . . . Robots Disrupted . | . . . Combat Hostiles . | . . . Robots Corrupted . | . . . Combat Hostiles . | . . . Parts Fried . | . . . Impact Corruptions . | . . . Robots Melted . | . . . Combat Hostiles . | . . . Parts Melted . | . . . Heat Transferred . | . . . Parts Sabotaged . | . . . Parts Stolen . | . . . Parts Stripped . | . . . Power Chain Reactions . | . . . Alert | -11 -10 -10 ------- Run | Yrd Mat Sub Maximum Alert Level . | . . . Low Security (%) 100 | 100 100 . Level 1 . | . . . Level 2 . | . . . Level 3 . | . . . Level 4 . | . . . Level 5 . | . . . High Security . | . . . Max Security . | . . . Peak Influence . | . . . Initial . | . . . Average . | . . . Influence Increases 140 | . . 140 Destroy 0b10 Robot/C 80 | . . 80 Lose Combat Pursuer 60 | . . 60 Influence Decreases 50 | . . 50 Time Decay 40 | . . 40 Lost Part 10 | . . 10 Squads Dispatched 1 | . 1 . Investigation 1 | . 1 . Extermination . | . . . Reinforcement . | . . . Assault . | . . . Garrison . | . . . Intercept . | . . . Searches Triggered . | . . . Construction Impeded . | . . . Haulers Reinforced . | . . . Active Scanning Responses . | . . . Cargo Convoy Interrupts . | . . . Stealth | -11 -10 -10 --------- Run | Yrd Mat Sub Distress Signals . | . . . Communications Jammed . | . . . Distress Signals . | . . . Times Spotted 19 | . 2 17 Peak Tracking Total 6 | . 1 6 Tactical Retreats 2 | . . 2 Traps | -11 -10 -10 ------- Run | Yrd Mat Sub Traps Triggered 2 | . . 2 Indirectly . | . . . Trap Hack Attempts . | . . . Triggered . | . . . Disarmed . | . . . Reprogrammed . | . . . Reused . | . . . Traps Extracted . | . . . Installed . | . . . Triggered . | . . . Machines | -11 -10 -10 ---------- Run | Yrd Mat Sub Machines Disabled . | . . . Max in Single Turn . | . . . Machines Repaired . | . . . Machines Dismantled . | . . . Machines Sabotaged . | . . . Overloaded Fab Kills . | . . . Hacking | -11 -10 -10 --------- Run | Yrd Mat Sub Machines Accessed 1 | . . 1 Terminals . | . . . Fabricators . | . . . Repair Stations . | . . . Recycling Units . | . . . Scanalyzers . | . . . Garrison Access . | . . . Total Hacks 9 | . . 9 Successful 9 | . . 9 Failed . | . . . Catastrophic . | . . . Database Lockouts . | . . . Manual . | . . . Terminals . | . . . Fabricators . | . . . Repair Stations . | . . . Recycling Units . | . . . Scanalyzers . | . . . Garrison Access . | . . . Terminal Hacks 9 | . . 9 Record 8 | . . 8 Proto ID Catalog 1 | . . 1 Fabricator Hacks . | . . . Repair Station Hacks . | . . . Recycling Unit Hacks . | . . . Scanalyzer . | . . . Garrison Access Hacks . | . . . Unauthorized Hacks . | . . . Terminals . | . . . Fabricators . | . . . Repair Stations . | . . . Recycling Units . | . . . Scanalyzers . | . . . Garrison Access . | . . . Data Cores Recovered . | . . . Used . | . . . Hacking Detections . | . . . Full Trace Events . | . . . Feedback Events . | . . . Feedback Blocked . | . . . Robot Schematics Acquired . | . . . Robots Built . | . . . Authchips . | . . . Time . | . . . Total Robot Build Rating . | . . . Part Schematics Acquired . | . . . Parts Built . | . . . Authchips . | . . . Time . | . . . Total Part Build Rating . | . . . Parts Repaired . | . . . Time . | . . . Parts Recycled . | . . . Recycled Matter . | . . . Retrieved Matter . | . . . Retrieved Components . | . . . Parts Scanalyzed . | . . . Part Schematics Acquired . | . . . Parts Damaged . | . . . Bothacking | -11 -10 -10 ------------ Run | Yrd Mat Sub Used RIF Installer . | . . . Robots Hacked . | . . . Non-combat . | . . . Combat . | . . . Robot Hacks Applied . | . . . Relay Couplers Released . | . . . Fabnet Peak Effective % . | . . . Robots Rewired . | . . . Allies Hacked . | . . . Hacks Repelled . | . . . Allies | -11 -10 -10 -------- Run | Yrd Mat Sub Total Allies . | . . . Largest Group . | . . . Highest-Rated Group . | . . . Highest-Rated Ally . | . . . Total Orders . | . . . Ally Attacks . | . . . Total Damage . | . . . Kills . | . . . Allies Corrupted . | . . . Allies Melted . | . . . Intel | -11 -10 -10 ------- Run | Yrd Mat Sub Active Infowar (turns) . | . . . Robot Analysis Total . | . . . Derelict Logs Recovered 1 | . . 1 Drone Launches . | . . . Drone Recoveries . | . . . Exploration | -11 -10 -10 ------------- Run | Yrd Mat Sub Turns Passed 2578 | 98 146 2334 Spaces Moved 1547 | 56 92 1399 Core 2 | 2 . . Treads 1545 | 54 92 1399 Legs . | . . . Wheels . | . . . Hover . | . . . Flight . | . . . Fastest Speed 50 | 50 160 160 Average Speed 159 | 156 160 160 Slowest Speed 160 | 160 160 160 Overloaded Moves . | . . . Propulsion Burnouts . | . . . Robots Hopped . | . . . Potential Cave-ins . | . . . Cave-ins Triggered . | . . . Exploration Rate (%) 30 | 4 25 62 Regions Visited 2 Branch Regions 1 Pre-discovered Areas 1 | . . 1 Known Exits Taken . | . . . Unknown Exits Taken 2 | 1 1 . Scrap Searched 5 | . . 5 Spaces Dug . | . . . Terrain Destroyed . | . . . Melee . | . . . Projectile . | . . . AOE . | . . . Terrain Rammed . | . . . Walls Destroyed . | . . . Machines Disabled . | . . . Actions | -11 -10 -10 --------- Run | Yrd Mat Sub Total 1591 | 64 91 1436 Wait . | . . . Move 1545 | 55 91 1399 Hop . | . . . Pick Up 3 | 3 . . Fast Attach 6 | 5 . 1 Attach 1 | 1 . . Detach . | . . . Swap 5 | . . 5 Drop . | . . . Fire 31 | . . 31 Melee . | . . . Ram . | . . . Kick . | . . . Crush . | . . . Escape Stasis . | . . . Rewire . | . . . Trap . | . . . Miscellaneous . | . . . Route ------- -11/Scrapyard -10/Materials (discovered 2 exits: [*Mat] / *Sub) -10/Subcaves (discovered 3 exits: [*Mat] / [*Rec] / [*Scr]) History --------- Turn | Location | Event 15 | -11/Scrapyard | Discovered new exit (range 16) 99 | -11/Scrapyard | Entered Materials 100 | -10/Materials | Met a group of wandering Federalists 205 | -10/Materials | Discovered new exit (range 16) 237 | -10/Materials | Discovered new exit (range 8) 245 | -10/Materials | Entered Subcaves 245 | -10/Subcaves | Accompanied by 1 ally 246 | -10/Subcaves | Continued accompanying wandering Federalists (5) 246 | -10/Subcaves | Approached by a straggling Scientist 259 | -10/Subcaves | A swath of the cavern ceiling suddenly collapsed 290 | -10/Subcaves | Lost 3 allies 309 | -10/Subcaves | Build established: Mutant 371 | -10/Subcaves | A swath of the cavern ceiling suddenly collapsed 512 | -10/Subcaves | Wandering Federalist uncovered a shortcut to Scraptown 844 | -10/Subcaves | Learned location of Zion (-7) 844 | -10/Subcaves | Met a Zionite searching for "candidates" 1081 | -10/Subcaves | Discovered new exit (range 14) 1218 | -10/Subcaves | Shifting Twisted Machinery released Sub. Power Source 1227 | -10/Subcaves | Shifting Twisted Machinery released Barrage Gun 1440 | -10/Subcaves | Visited 4L-MR0's lab 1563 | -10/Subcaves | Learned Materials emergency access door positions 2175 | -10/Subcaves | Lost 3 allies 2489 | -10/Subcaves | Discovered new exit (range 11) 2500 | -10/Subcaves | Core integrity fell below 50% 2561 | -10/Subcaves | Ambushed by Subdwellers from Twisted Machinery 2568 | -10/Subcaves | Core integrity fell below 20% 2579 | -10/Subcaves | Destroyed by 6U-HY8(R) with Subdweller Beam Cannon Last Messages --------------- 02349_ HC-8TK(R) destroyed. 02363_ KF-TXD(R) destroyed. UY-J7V(c): "I think it's somewhere west of here" 02489_ EXIT=FOUND 02491_ S-10 Pest destroyed. 02491_ Switching to secondary target: Autobeam Turret. 02495_ Flight Unit fries itself beyond repair. 02496_ Sub. Machine Gun shoots sparks and powers down. 02504_ S-10 Pest destroyed. 02515_ Lgt. Ion Engine fries itself beyond repair. 02517_ Flight Unit fries itself beyond repair. 02521_ UY-J7V(c) destroyed. 02561_ 6U-HY8(R) emerges from the Twisted Machinery. 02572_ Lgt. Treads destroyed. Map ----- +----------------------------------------------------+ | ?????????????????????????????????????????????????? | | ?????????????????????????????????????????????????? | | ?????????????????????????????????????????????????? | | ?????????????????????????????????????????????????? | | ?????????????????????????????????????????????????? | | ?????????????????????????????????????????????????? | | ?????????????????????????????????????????????????? | | ?????????????????????????????????????????????????? | | ?????????????????????????????????????????????????? | | ?????????????????????????????????????????????????? | | ?????????????????????????????????????????????????? | | ?????????????????????????????????????????????????? | | ?????????????????????????????????????????????????? | | ?????????????????????????????????????????????????? | | ?????????????????????????????#???????????????????? | | ????????????????????????????? ????##????????????? | | ????????????????????????????? ??? #????????????? | | ????????????????????????????? ?? ##???????????? | | ?????????????????????????## ??# #???????????? | | ????????????????????????## ??# ###?????????? | | ????????????????????????#"""" #?## ##????###?? | | ????????????????????????#"""" ### ???## #?? | | ????????????????????????#""""#?# ????## #?# | | ???????????????????????##""""#?# #?????# #?# | | ?????????????????## ""## ### #?????## ## | | ???????????????? """R @ ###?### | | ???????????????# R "" ### | | ???????????????## "" | | ????????????????# ""## | | ???????????????# "## ## | | ?????????????? "" ### | | ???????????? ### | | ????????????#### " #### ##?## | | ???????????????# ##"""#??# ##???### | | ???????????????##########?# "##??# ##??????# | | ??????????????????????????###????########???# | | ??????????????????????????????????# ##### | | ???????????????????????????????????# =%! | | ???????????????????????????????????## =%% % | | ????????????????????????????????????### # # % ## | | ??????????????????????????????????##### #### #? | | #############????????????????????## ## ##?? ##? | | #" """"""#" #???????????????????## #??? %#?? | | #" "X" "!#???????????????????# ##??? ?? | | ### ###???????????????????# ##???? ? | | / #?????????????????????# %#???? ? | | ##########??#??????????????????# &#???? " | | ####????### #?????????????????## #???? " " " | | %%"#####" "#????????????????## ###??"" """" | | [ # #???????????????### #?###<#### | +----------------------------------------------------+ Best States ------------- Heat Dissipation 25 Coolant Potential 50 Energy Generation 15 Energy Capacity 200 Matter Stores 300 Matter Capacity 300 Sight Range 16 Terrain Scan Density 10 Resistance: KI 20 Resistance: TH 20 Resistance: EX 20 Resistance: EM 20 Resistance: I 20 Resistance: S 20 Resistance: P 20 Evasion (%) 40 Recoil Reduction 2 Offensive Hacking 10 Item Schematics ----------------- None Robot Schematics ------------------ None Fabricated ------------ Nothing Repaired ---------- Nothing Alien Tech Used ----------------- None Achievements -------------- None Challenges ------------ None Game ------ Seed GravityGravjetChargecaster Manual? 0 Play Time 00:20:13 Cumulative 19.1 hours Start 2025.07.01 @ 17:29:35 End 2025.07.01 @ 23:16:23 Sessions 1 Manual Loads 0 Difficulty Adventurer Special Mode None Game No. 25 Rogue 21 Adventurer 2 Explorer 2 Win Type - Total 0 Types 0/0/0/0/0/0/0/0/0/0 Lore% 13 Gallery% 21 Achievement% 22 Wizard Run 0 Options --------- Layout 1 ASCII 1 Keyboard 0 Movement Mouse Keybinds 0 Fullscreen 1 Font 32/SmallcapsGlow Map View 50x35 Zoom Use 0% Tactical HUD 1 Map Filters NONE Filters NONE Steam 1 RUN: 576a2c97-e79d-4bca-81f0-a46d27294a02